Cogmind - Beta 14 @@@ ROGUE MODE // 2024.11.19 @ 08:11:06 Player: mehbruh Result: Core destroyed Performance ------------- Evolutions (0) 0 Regions Visited (1) 200 Robots Destroyed (16) 80 Value Destroyed (501) 501 Prototype IDs (0) 0 Alien Tech Used (0) 0 Bonus (0) 0 TOTAL SCORE: 781 Bonus ------- None Cogmind --------- Core Integrity 0/250 Matter 281/300 Energy 100/100 System Corruption 42% Temperature Cool (0) Movement Core (500) Ox9 Location -10/Materials Parts ------- > --- POWER (1) -------- Ion Engine > --- PROPULSION (2) --- Light Treads Light Treads > --- UTILITY (2) ------ Large Storage Unit > --- WEAPON (2) ------- Assault Rifle Heavy Assault Rifle > --- INVENTORY (15) --- Ion Engine Wheel Cooling System Medium Laser Particle Gun Heavy Assault Rifle Heavy Assault Rifle Heavy Assault Rifle Grenade Launcher Grenade Launcher Peak State ------------ > --- POWER ------------ Ion Engine > --- PROPULSION ------- Light Treads Light Treads > --- UTILITY ---------- Cooling System Small Storage Unit > --- WEAPON ----------- Assault Rifle Assault Rifle > --- INVENTORY -------- Ion Engine Wheel Heavy Assault Rifle Heavy Assault Rifle Heavy Assault Rifle Heavy Assault Rifle [Rating: 9] Favorites ----------- Power Ion Engine Engine Ion Engine Propulsion Light Treads Treads Light Treads Utility Light Armor Plating Device Cooling System Storage Large Storage Unit Protection Light Armor Plating Weapon Assault Rifle Ballistic Gun Assault Rifle Build | -11 -10 ------- Run | Yrd Mat Slots Evolved . | . . Power . | . . Propulsion . | . . Utility . | . . Weapon . | . . Parts Attached 11 | 6 5 Power 1 | 1 . Engine 1 | 1 . Core . | . . Reactor . | . . Propulsion 2 | 2 . Treads 2 | 2 . Leg . | . . Wheel . | . . Hover . | . . Flight . | . . Utility 5 | 1 4 Device 2 | . 2 Storage 2 | 1 1 Processor . | . . Hackware . | . . Protection 1 | . 1 Artifact . | . . Weapon 3 | 2 1 Energy Gun . | . . Energy Cannon . | . . Ballistic Gun 3 | 2 1 Ballistic Cannon . | . . Launcher . | . . Special Weapon . | . . Impact Weapon . | . . Slashing Weapon . | . . Piercing Weapon . | . . Special Melee Weapon . | . . Unidentified Prototypes . | . . Parts Lost 2 | . 2 Power . | . . Propulsion . | . . Utility 1 | . 1 Weapon 1 | . 1 Highest Loss Streak 1 | . 1 To Critical Strikes . | . . Average Slot Usage (%) 98 | . 98 Engine 14 | . 14 Treads 28 | . 28 Device 1 | . 1 Storage 14 | . 14 Protection 11 | . 11 Ballistic Gun 28 | . 28 Peak Build Rating 9 | 6 9 Average Rating 8 | 4 8 On Entrance 3 | . 6 Naked Turns . | . . Heaviest Build 33 | 14 33 Greatest Support 40 | 40 40 Greatest Overweight (x) 3 | 3 . Average Overweight (x) . | . . Largest Inventory Capacity 15 | 8 15 Average Capacity 11 | 7 11 Most Carried 10 | 4 10 Average Carried 8 | 2 8 Final Capacity 15 | 8 15 Final Carried 10 | 4 10 Class Distribution -------------------- 100% | Mutant Dominant Class ---------------- Mutant | -10/Materials Resources | -11 -10 ----------- Run | Yrd Mat Matter Collected 639 | 250 389 Remotely . | . . Salvage Created 698 | . 698 Parts 38 | . 38 Haulers Intercepted 2 | . 2 Recyclers Shooed . | . . Parts Field Recycled . | . . Retrieved Matter . | . . Parts Self-Destructed . | . . Prevented . | . . Kills | -11 -10 ------- Run | Yrd Mat Combat Hostiles Destroyed 13 | . 13 Guns 13 | . 13 Classes Destroyed 3 | . 3 Hauler 2 | . 2 Operator 1 | . 1 Grunt 13 | . 13 Best Kill Streak 3 | . 3 Combat Bots Only 3 | . 3 Max Kills in Single Turn 2 | . 2 Gunslinging 1 | . 1 Exploded . | . . Melee . | . . Uniques/NPCs Destroyed . | . . Combat | -11 -10 -------- Run | Yrd Mat Hostile Shots Fired 64 | . 64 Missed 19 | . 19 Damage Taken 834 | . 834 Core 251 | . 251 Absorbed by Shields . | . . Core Remaining (%) 100 | 100 . Volleys Fired 56 | . 56 Largest 2 | . 2 Hottest 43 | . 43 Shots Fired 112 | . 112 Gun 112 | . 112 Cannon . | . . Launcher . | . . Special . | . . Kinetic 112 | . 112 Thermal . | . . Explosive . | . . Electromagnetic . | . . Robot Hit Streak 13 | . 13 Robot Miss Streak 4 | . 4 Penetration Max . | . . Secondary Targets 1 | . 1 Max Gunslinging Chain 1 | . 1 Shots Hit Robots 80 | . 80 Core Hits 30 | . 30 Critical Kills 1 | . 1 Critical Parts Destroyed 1 | . 1 Critical Strikes 2 | . 2 Destroy 2 | . 2 Melee Attacks . | . . Impact . | . . Slashing . | . . Piercing . | . . Sneak Attacks . | . . Combat Hostiles . | . . Follow-up Attacks . | . . Damage Inflicted 1170 | 2 1168 Guns 1099 | . 1099 Cannons . | . . Explosions . | . . Melee . | . . Ramming 71 | 2 69 Kinetic 1099 | . 1099 Thermal . | . . Explosive . | . . Electromagnetic . | . . Impact . | . . Slashing . | . . Piercing . | . . Highest Corruption 42 | . 42 Average Corruption 22 | . 22 Corruption Purged . | . . Corruption Blocked . | . . Effects 11 | . 11 Message Errors 3 | . 3 Matter Fused 3 | . 3 Heat Flow Errors 1 | . 1 Data Loss (minor) 2 | . 2 Data Loss (major) 2 | . 2 Overload Shots . | . . Overflow Damage . | . . Projectiles . | . . Explosions . | . . Melee . | . . Knockbacks . | . . Impact . | . . Kinetic . | . . Secondary . | . . Self-Inflicted Damage 69 | . 69 Shots . | . . Rammed 1 | 1 . Targets Rammed 1 | 1 . Kicked . | . . Crushed . | . . Highest Temperature 118 | . 118 Average Temperature 10 | . 10 Received Heat Transfer 333 | . 333 Siege Activations . | . . Robots Corrupted . | . . Combat Hostiles . | . . Parts Fried . | . . Impact Corruptions . | . . Robots Melted . | . . Combat Hostiles . | . . Parts Melted . | . . Heat Transferred . | . . Parts Sabotaged . | . . Parts Stolen . | . . Parts Stripped . | . . Power Chain Reactions . | . . Alert | -11 -10 ------- Run | Yrd Mat Peak Influence 236 | . 236 Initial . | . . Average 77 | . 81 Maximum Alert Level 1 | . 1 Low Security (%) 92 | 100 92 Level 1 7 | . 7 Level 2 . | . . Level 3 . | . . Level 4 . | . . Level 5 . | . . High Security . | . . Max Security . | . . Squads Dispatched 3 | . 3 Investigation 1 | . 1 Extermination . | . . Reinforcement 2 | . 2 Assault . | . . Garrison . | . . Intercept . | . . Searches Triggered . | . . Construction Impeded . | . . Haulers Reinforced . | . . Active Scanning Responses . | . . Cargo Convoy Interrupts . | . . Stealth | -11 -10 --------- Run | Yrd Mat Distress Signals 1 | . 1 Communications Jammed . | . . Distress Signals . | . . Times Spotted 22 | . 22 Peak Tracking Total 5 | . 5 Tactical Retreats . | . . Traps | -11 -10 ------- Run | Yrd Mat Traps Triggered 2 | . 2 Indirectly . | . . Trap Hack Attempts . | . . Triggered . | . . Disarmed . | . . Reprogrammed . | . . Reused . | . . Traps Extracted . | . . Installed . | . . Triggered . | . . Machines | -11 -10 ---------- Run | Yrd Mat Machines Disabled . | . . Max in Single Turn . | . . Machines Repaired . | . . Machines Dismantled . | . . Machines Sabotaged . | . . Overloaded Fab Kills . | . . Hacking | -11 -10 --------- Run | Yrd Mat Machines Accessed 6 | . 6 Terminals 6 | . 6 Fabricators . | . . Repair Stations . | . . Recycling Units . | . . Scanalyzers . | . . Garrison Access . | . . Total Hacks 21 | . 21 Successful 9 | . 9 Failed 11 | . 11 Catastrophic 1 | . 1 Database Lockouts 1 | . 1 Manual 21 | . 21 Terminals 21 | . 21 Fabricators . | . . Repair Stations . | . . Recycling Units . | . . Scanalyzers . | . . Garrison Access . | . . Terminal Hacks 1 | . 1 Robot Analysis 1 | . 1 Fabricator Hacks . | . . Repair Station Hacks . | . . Recycling Unit Hacks . | . . Scanalyzer . | . . Garrison Access Hacks . | . . Unauthorized Hacks 8 | . 8 Terminals 8 | . 8 Botnet 4 | . 4 Skim 4 | . 4 Fabricators . | . . Repair Stations . | . . Recycling Units . | . . Scanalyzers . | . . Garrison Access . | . . Data Cores Recovered . | . . Used . | . . Hacking Detections 6 | . 6 Full Trace Events 1 | . 1 Feedback Events . | . . Feedback Blocked . | . . Robot Schematics Acquired . | . . Robots Built . | . . Authchips . | . . Time . | . . Total Robot Build Rating . | . . Part Schematics Acquired . | . . Parts Built . | . . Authchips . | . . Time . | . . Total Part Build Rating . | . . Parts Repaired . | . . Time . | . . Parts Recycled . | . . Recycled Matter . | . . Retrieved Matter . | . . Retrieved Components . | . . Parts Scanalyzed . | . . Part Schematics Acquired . | . . Parts Damaged . | . . Bothacking | -11 -10 ------------ Run | Yrd Mat Used RIF Installer . | . . Robots Hacked . | . . Non-combat . | . . Combat . | . . Robot Hacks Applied . | . . Relay Couplers Released . | . . Fabnet Peak Effective % . | . . Robots Rewired . | . . Allies Hacked . | . . Hacks Repelled . | . . Allies | -11 -10 -------- Run | Yrd Mat Total Allies . | . . Largest Group . | . . Highest-Rated Group . | . . Highest-Rated Ally . | . . Total Orders . | . . Ally Attacks . | . . Total Damage . | . . Kills . | . . Allies Corrupted . | . . Allies Melted . | . . Intel | -11 -10 ------- Run | Yrd Mat Robot Analysis Total 1 | . 1 Derelict Logs Recovered . | . . Drone Launches . | . . Drone Recoveries . | . . Exploration | -11 -10 ------------- Run | Yrd Mat Turns Passed 1522 | 69 1453 Spaces Moved 639 | 37 602 Core 5 | 5 . Treads 634 | 32 602 Legs . | . . Wheels . | . . Hover . | . . Flight . | . . Fastest Speed 50 | 50 160 Average Speed 159 | 150 160 Slowest Speed 200 | 200 160 Overloaded Moves . | . . Propulsion Burnouts . | . . Robots Hopped . | . . Cave-ins Triggered . | . . Exploration Rate (%) 50 | 4 96 Regions Visited 1 Branch Regions . Pre-discovered Areas . | . . Known Exits Taken . | . . Unknown Exits Taken 1 | 1 . Scrap Searched . | . . Spaces Dug . | . . Terrain Destroyed . | . . Melee . | . . Projectile . | . . AOE . | . . Terrain Rammed 50 | . 50 Walls Destroyed . | . . Machines Disabled . | . . Actions | -11 -10 --------- Run | Yrd Mat Total 829 | 47 782 Wait 54 | . 54 Move 638 | 36 602 Hop . | . . Pick Up 14 | 4 10 Fast Attach 9 | 6 3 Attach 1 | . 1 Detach . | . . Swap 1 | . 1 Drop 6 | . 6 Fire 56 | . 56 Melee . | . . Ram 49 | . 49 Kick . | . . Crush 1 | 1 . Escape Stasis . | . . Rewire . | . . Trap . | . . Miscellaneous . | . . Route ------- -11/Scrapyard -10/Materials (discovered 4 exits: [*Mat x3] / [*Min]) History --------- Turn | Location | Event 8 | -11/Scrapyard | Discovered new exit (range 15) 70 | -11/Scrapyard | Entered Materials 278 | -10/Materials | Discovered new exit (range 16) 310 | -10/Materials | Build established: Mutant 565 | -10/Materials | Discovered new exit (range 11) 746 | -10/Materials | Discovered new exit (range 9) 1080 | -10/Materials | Central database locked down 1123 | -10/Materials | Discovered new exit (range 10) 1327 | -10/Materials | System corruption reached 10% 1338 | -10/Materials | Core integrity fell below 50% 1434 | -10/Materials | System corruption reached 30% 1444 | -10/Materials | Core integrity fell below 20% 1523 | -10/Materials | Core destroyed Last Messages --------------- 01483_ Destabilizing: System corrupted (+2). 01488_ Slammed into Wall. 01488_ Destabilizing: Core damaged (-2). 01493_ Slammed into Wall. 01493_ Destabilizing: System corrupted (+1). 01498_ Slammed into Wall. 01498_ Destabilizing: Core damaged (-2). 01498_ Destabilizing: Core damaged (-5). 01500_ JHFXJAKTYGUJ9&=RRX0S TE6 01513_ Destabilizing: Core damaged (-5). 01518_ Slammed into Wall. 01518_ Destabilizing: System corrupted (+2). 01521_ System corrupted: Substantial component data lost. 01523_ Slammed into Wall. 01523_ Destabilizing: Core damaged (-2). Map ----- +----------------------------------------------------+ | ????????# # """ # | | ????????# %[ # """ # < | | ????????########+######! """ # | | ?????????????# !=%*%*%+= + % | | ?????????????# !#### """ # | | ?????????????# #??# """ # | | ???########### #??# """ # | | # + #??# # | | ??? """ """ # #??########## | | ??? """ """ # #?########### | | # """ """ # #? # | | # # # ??# | | # """ """ +*! # " """????# | | ??? """ """ #%= + """""?????# | | ????""" """ #[= # """ "????#### | | ????? # # ??????? | | ????? # != #? ????? | | ???? # !%!#?###########??? | | ??? # !=!#????# T #### | | ############## #????# # | | # #?# #????# """# | | # #?# #????# """# | | # ! #?# #????# """# "" | | # ### ##???# # "" | | # ## #######+#### "" | | # @## ## | | ???###+###### ###+# | | ???# #??# | | ???# #### | | ???# T | | ???# #### ##### | | ???# #??#### #???# | | ???### ###?????# #???# | | ?????# #???????# #??##/#### | | ?????# #???????# #??#^ = # | | ?????# #########+# #??#"" # | | ?????# ## # #??#"Y # | | ?????# ## """ # #??#"" # | | ?????# ## """ # #??# # | | ?????# ## """ # #??# [+ | | ?????# ## # #??# # | | ?????# ## """ # #??# # | | ?????# ## """ # #??# # / | | ?????# ## """ # #??# /// #] * | | ?????# ## # #??# /// #! | | ###### ######+#### #### /// # | | # # T########### | | # # ""#???????#"" | | # # ###???????#"T | | # # =% #?????????#"" | +----------------------------------------------------+ Best States ------------- Heat Dissipation 47 Energy Generation 10 Energy Capacity 250 Matter Stores 300 Matter Capacity 300 Sight Range 16 Robot Scan Range 14 Terrain Scan Density 10 Armor Coverage 150 Evasion (%) 40 Recoil Reduction 2 Item Schematics ----------------- None Robot Schematics ------------------ None Fabricated ------------ Nothing Alien Tech Used ----------------- None Achievements -------------- None Challenges ------------ None Game ------ Seed NovaAssaultMultirail Manual? 0 Play Time 00:13:24 Cumulative 64.6 hours Start 2024.11.19 @ 07:52:33 End 2024.11.19 @ 08:11:06 Sessions 1 Manual Loads 0 Difficulty Rogue Special Mode None Game No. 54 Rogue 54 Adventurer 0 Explorer 0 Win Type - Total 2 Types 2/0/0/0/0/0/0/0/0 Lore% 24 Gallery% 42 Achievement% 43 Wizard Run 0 Options --------- Layout 1 ASCII 0 Keyboard 0 Movement Arrows Keybinds 0 Fullscreen 1 Font 24/Smallcaps Map View 50x35 Zoom Use 0% Tactical HUD 1 Map Filters NONE Filters NONE Steam 1 RUN: 3d011000-efae-4690-88b0-e03eabb9ce55